[Event "*** Titled Tuesday Blitz"]
[Site "Chess.com"]
[Date "2021.04.06"]
[Round "2"]
[White "RobertoJBM"]
[Black "ama18"]
[Result "1-0"]
[WhiteElo "2719"]
[BlackElo "2492"]
[TimeControl "180+1"]
[EndTime "10:19:21 PDT"]
[Termination "RobertoJBM won on time"]

1. d4 {[%clk 0:03:00.9]} 1... Nf6 {[%clk 0:02:59.7]} 2. e3 {[%clk 0:03:01.4]}
2... e6 {[%clk 0:03:00.1]} 3. Nf3 {[%clk 0:03:02.3]} 3... b6 {[%clk 0:03:00.7]}
4. Bd3 {[%clk 0:03:02.4]} 4... Bb7 {[%clk 0:03:01.4]} 5. O-O {[%clk 0:03:02.9]}
5... c5 {[%clk 0:03:02]} 6. Nbd2 {[%clk 0:03:03.2]} 6... cxd4 {[%clk 0:03:02.6]}
7. exd4 {[%clk 0:03:02.4]} 7... Be7 {[%clk 0:03:03.2]} 8. Qe2 {[%clk 0:03:01.4]}
8... d6 {[%clk 0:03:03.7]} 9. c3 {[%clk 0:03:01.7]} 9... O-O {[%clk 0:03:04.1]}
10. Re1 {[%clk 0:03:02.2]} 10... Nbd7 {[%clk 0:03:04.6]} 11. a4 {[%clk
0:03:02.5]} 11... a6 {[%clk 0:03:02.5]} 12. Nc4 {[%clk 0:03:03]} 12... Qc7
{[%clk 0:03:02.5]} 13. Bf4 {[%clk 0:03:02.1]} 13... Rfe8 {[%clk 0:03:01.7]} 14.
h3 {[%clk 0:03:01.4]} 14... Bf8 {[%clk 0:03:01]} 15. Bh2 {[%clk 0:02:59.4]}
15... Rac8 {[%clk 0:03:00.4]} 16. Ne3 {[%clk 0:02:58.7]} 16... Ra8 {[%clk
0:02:59.5]} 17. Nd2 {[%clk 0:02:55.8]} 17... g6 {[%clk 0:02:57.7]} 18. f4 {[%clk
0:02:53.6]} 18... Qc6 {[%clk 0:02:48.1]} 19. Ng4 {[%clk 0:02:35.4]} 19... Nh5
{[%clk 0:02:38.3]} 20. Be4 {[%clk 0:02:25.2]} 20... Qc7 {[%clk 0:02:33.9]} 21.
Bxb7 {[%clk 0:02:22.3]} 21... Qxb7 {[%clk 0:02:34.8]} 22. Ne3 {[%clk 0:02:18.9]}
22... d5 {[%clk 0:02:01.4]} 23. Qf3 {[%clk 0:02:11.2]} 23... Bd6 {[%clk
0:01:52.9]} 24. f5 {[%clk 0:02:02.2]} 24... Bxh2+ {[%clk 0:01:46.3]} 25. Kxh2
{[%clk 0:02:03.1]} 25... Qb8+ {[%clk 0:01:24.7]} 26. Kg1 {[%clk 0:02:02]} 26...
exf5 {[%clk 0:01:22.6]} 27. Nxd5 {[%clk 0:01:53.2]} 27... Qg3 {[%clk 0:00:47.1]}
28. Qxg3 {[%clk 0:01:43.8]} 28... Nxg3 {[%clk 0:00:48]} 29. Nc4 {[%clk
0:01:43.2]} 29... b5 {[%clk 0:00:36]} 30. Nd6 {[%clk 0:01:02.8]} 30... Rxe1+
{[%clk 0:00:34.9]} 31. Rxe1 {[%clk 0:01:03.7]} 31... Ne4 {[%clk 0:00:19.3]} 32.
Nxe4 {[%clk 0:00:57]} 32... fxe4 {[%clk 0:00:20.2]} 33. axb5 {[%clk 0:00:57.1]}
33... axb5 {[%clk 0:00:19.9]} 34. Rxe4 {[%clk 0:00:57.5]} 34... Ra1+ {[%clk
0:00:18.9]} 35. Kf2 {[%clk 0:00:57.2]} 35... Rb1 {[%clk 0:00:18.8]} 36. Re2
{[%clk 0:00:55.2]} 36... Nf8 {[%clk 0:00:16.7]} 37. Nc7 {[%clk 0:00:30]} 37...
b4 {[%clk 0:00:14.7]} 38. c4 {[%clk 0:00:30.1]} 38... Nd7 {[%clk 0:00:13.8]} 39.
Nd5 {[%clk 0:00:25.1]} 39... b3 {[%clk 0:00:13.8]} 40. Ke3 {[%clk 0:00:23.5]}
40... Rc1 {[%clk 0:00:13.6]} 41. c5 {[%clk 0:00:21.5]} 41... Nb8 {[%clk
0:00:09.7]} 42. Kd3 {[%clk 0:00:18.2]} 42... Nc6 {[%clk 0:00:09.1]} 43. Nc3
{[%clk 0:00:18.4]} 43... Kg7 {[%clk 0:00:05.2]} 44. d5 {[%clk 0:00:16.6]} 44...
Nb4+ {[%clk 0:00:04.7]} 45. Kc4 {[%clk 0:00:17]} 45... Na6 {[%clk 0:00:03.8]}
46. c6 {[%clk 0:00:15.9]} 46... Rc2 {[%clk 0:00:02.7]} 47. Rxc2 {[%clk
0:00:15.2]} 47... bxc2 {[%clk 0:00:03.6]} 48. Ne2 {[%clk 0:00:15.2]} 48... Nc7
{[%clk 0:00:03.4]} 49. b4 {[%clk 0:00:15.2]} 49... Ne8 {[%clk 0:00:02.7]} 50.
Kc5 {[%clk 0:00:14.7]} 50... Kf6 {[%clk 0:00:03.6]} 51. b5 {[%clk 0:00:14.7]}
51... Ke7 {[%clk 0:00:03.6]} 52. b6 {[%clk 0:00:15]} 52... Kd8 {[%clk
0:00:04.1]} 53. d6 {[%clk 0:00:14.8]} 53... Nxd6 {[%clk 0:00:04.3]} 54. Kxd6
{[%clk 0:00:14.6]} 1-0

[Event "*** Titled Tuesday Blitz"]
[Site "Chess.com"]
[Date "2021.04.06"]
[Round "2"]
[White "Kotofeyca"]
[Black "akanga001"]
[Result "1-0"]
[WhiteElo "2377"]
[BlackElo "2028"]
[TimeControl "180+1"]
[EndTime "10:19:21 PDT"]
[Termination "Kotofeyca won on time"]

1. d4 {[%clk 0:03:00.9]} 1... Nf6 {[%clk 0:02:59]} 2. c4 {[%clk 0:03:00.9]} 2...
b6 {[%clk 0:02:58.4]} 3. f3 {[%clk 0:02:52]} 3... c5 {[%clk 0:02:57.4]} 4. d5
{[%clk 0:02:50.4]} 4... d6 {[%clk 0:02:57.1]} 5. e4 {[%clk 0:02:50.4]} 5... Nbd7
{[%clk 0:02:56.3]} 6. Nc3 {[%clk 0:02:49.7]} 6... g6 {[%clk 0:02:55.2]} 7. Bg5
{[%clk 0:02:48.8]} 7... Bg7 {[%clk 0:02:53.6]} 8. Qd2 {[%clk 0:02:48.9]} 8...
O-O {[%clk 0:02:48.8]} 9. Nh3 {[%clk 0:02:49]} 9... a6 {[%clk 0:02:39.4]} 10.
Nf2 {[%clk 0:02:47.2]} 10... Ne5 {[%clk 0:02:33.4]} 11. Be2 {[%clk 0:02:44.5]}
11... h5 {[%clk 0:02:27.1]} 12. O-O {[%clk 0:02:40.4]} 12... Qc7 {[%clk
0:02:23.9]} 13. a3 {[%clk 0:02:33.2]} 13... e6 {[%clk 0:02:20.6]} 14. dxe6
{[%clk 0:02:24]} 14... fxe6 {[%clk 0:02:19.7]} 15. Rad1 {[%clk 0:02:24.3]} 15...
Nf7 {[%clk 0:02:11.3]} 16. Be3 {[%clk 0:02:13.5]} 16... Bb7 {[%clk 0:02:08.8]}
17. Nh3 {[%clk 0:02:13]} 17... Rad8 {[%clk 0:02:04.8]} 18. Nf4 {[%clk
0:02:06.4]} 18... Rfe8 {[%clk 0:02:01.4]} 19. Nxg6 {[%clk 0:02:03.4]} 19... d5
{[%clk 0:02:00.7]} 20. cxd5 {[%clk 0:01:39]} 20... exd5 {[%clk 0:01:59]} 21. Bf4
{[%clk 0:01:32.9]} 21... Qc8 {[%clk 0:01:46.9]} 22. exd5 {[%clk 0:01:15.5]}
22... Nxd5 {[%clk 0:01:45.8]} 23. Nxd5 {[%clk 0:01:12.8]} 23... Bxd5 {[%clk
0:01:44.3]} 24. Qc2 {[%clk 0:01:09.2]} 24... Qe6 {[%clk 0:01:33.6]} 25. Rxd5
{[%clk 0:00:28.8]} 25... Qxd5 {[%clk 0:01:16.6]} 26. Bxa6 {[%clk 0:00:28.1]}
26... Qd4+ {[%clk 0:01:08.8]} 27. Kh1 {[%clk 0:00:26]} 27... Qxb2 {[%clk
0:01:08.2]} 28. Qf5 {[%clk 0:00:22.3]} 28... Qf6 {[%clk 0:01:04.4]} 29. Qxh5
{[%clk 0:00:18]} 29... Re6 {[%clk 0:00:57.7]} 30. Nh4 {[%clk 0:00:04.2]} 30...
Qxf4 {[%clk 0:00:55.8]} 31. g3 {[%clk 0:00:03.8]} 31... Qg5 {[%clk 0:00:51.5]}
32. Qxg5 {[%clk 0:00:04.1]} 32... Nxg5 {[%clk 0:00:50.9]} 33. Bc4 {[%clk
0:00:04.7]} 33... Re8 {[%clk 0:00:48.3]} 34. f4 {[%clk 0:00:04.8]} 34... Ne4
{[%clk 0:00:47.5]} 35. f5 {[%clk 0:00:05.2]} 35... Kh7 {[%clk 0:00:44.9]} 36.
fxe6 {[%clk 0:00:05.3]} 36... Nd6 {[%clk 0:00:42.9]} 37. Bd5 {[%clk 0:00:04.7]}
37... Re7 {[%clk 0:00:40.1]} 38. g4 {[%clk 0:00:05]} 38... Ne8 {[%clk
0:00:35.2]} 39. Nf5 {[%clk 0:00:05.5]} 39... Ra7 {[%clk 0:00:31.5]} 40. Bc6
{[%clk 0:00:04.7]} 40... Nf6 {[%clk 0:00:30.5]} 41. Rd1 {[%clk 0:00:04.5]} 41...
Bf8 {[%clk 0:00:28.2]} 42. g5 {[%clk 0:00:03.8]} 42... Ng4 {[%clk 0:00:25.3]}
43. Rd7+ {[%clk 0:00:04.3]} 43... Rxd7 {[%clk 0:00:20.5]} 44. exd7 {[%clk
0:00:05.2]} 44... Be7 {[%clk 0:00:16.7]} 45. Nxe7 {[%clk 0:00:04.7]} 45... Kg7
{[%clk 0:00:14.9]} 46. d8=Q {[%clk 0:00:04.4]} 1-0

[Event "*** Titled Tuesday Blitz"]
[Site "Chess.com"]
[Date "2021.04.06"]
[Round "2"]
[White "Valeron87"]
[Black "jraosam"]
[Result "1-0"]
[WhiteElo "2364"]
[BlackElo "1858"]
[TimeControl "180+1"]
[EndTime "10:19:21 PDT"]
[Termination "Valeron87 won by checkmate"]

1. e4 {[%clk 0:03:00.9]} 1... c5 {[%clk 0:02:51.3]} 2. Nf3 {[%clk 0:03:00.2]}
2... d6 {[%clk 0:02:50.7]} 3. d4 {[%clk 0:03:00.5]} 3... cxd4 {[%clk 0:02:50.9]}
4. Nxd4 {[%clk 0:03:00.7]} 4... Nf6 {[%clk 0:02:51.4]} 5. Nc3 {[%clk 0:02:59.2]}
5... g6 {[%clk 0:02:51.9]} 6. Bc4 {[%clk 0:02:52.7]} 6... Bg7 {[%clk 0:02:52.1]}
7. O-O {[%clk 0:02:51.7]} 7... Nc6 {[%clk 0:02:51.5]} 8. Nb3 {[%clk 0:02:50.5]}
8... O-O {[%clk 0:02:51.3]} 9. Re1 {[%clk 0:02:49.7]} 9... Ne5 {[%clk
0:02:43.9]} 10. Bf1 {[%clk 0:02:47.9]} 10... Be6 {[%clk 0:02:40.5]} 11. Nd4
{[%clk 0:02:24.7]} 11... Bd7 {[%clk 0:02:24.4]} 12. a4 {[%clk 0:02:23.3]} 12...
a6 {[%clk 0:02:23.4]} 13. a5 {[%clk 0:02:08.4]} 13... Rc8 {[%clk 0:02:17.8]} 14.
Nd5 {[%clk 0:01:57.6]} 14... Nxd5 {[%clk 0:02:01.4]} 15. exd5 {[%clk 0:01:58.5]}
15... Nc4 {[%clk 0:01:45.3]} 16. c3 {[%clk 0:01:58]} 16... Nxa5 {[%clk
0:01:41.9]} 17. Bg5 {[%clk 0:01:50.6]} 17... f6 {[%clk 0:01:40]} 18. Bf4 {[%clk
0:01:47.8]} 18... Nc4 {[%clk 0:01:37.9]} 19. Qb3 {[%clk 0:01:37.2]} 19... Ne5
{[%clk 0:01:20.3]} 20. h3 {[%clk 0:01:32.6]} 20... Qc7 {[%clk 0:01:14.3]} 21.
Be3 {[%clk 0:01:31.7]} 21... Kh8 {[%clk 0:00:26.3]} 22. f4 {[%clk 0:01:31]}
22... Nc4 {[%clk 0:00:20.8]} 23. Bxc4 {[%clk 0:01:28]} 23... Qxc4 {[%clk
0:00:19.6]} 24. Qxb7 {[%clk 0:01:28.5]} 24... Rc7 {[%clk 0:00:14.2]} 25. Qxa6
{[%clk 0:01:14.9]} 25... Qxd5 {[%clk 0:00:13.3]} 26. Rad1 {[%clk 0:01:09.8]}
26... Ra8 {[%clk 0:00:08.6]} 27. Qe2 {[%clk 0:01:06.5]} 27... Qb7 {[%clk
0:00:06.4]} 28. Rd2 {[%clk 0:00:27.8]} 28... e5 {[%clk 0:00:06.6]} 29. Nf3
{[%clk 0:00:25.7]} 29... Bb5 {[%clk 0:00:05.9]} 30. Qf2 {[%clk 0:00:25]} 30...
Ra6 {[%clk 0:00:05.3]} 31. Red1 {[%clk 0:00:24.3]} 31... Rd7 {[%clk 0:00:04.1]}
32. fxe5 {[%clk 0:00:23.9]} 32... fxe5 {[%clk 0:00:03.6]} 33. Ng5 {[%clk
0:00:23.7]} 33... d5 {[%clk 0:00:02.8]} 34. Qf3 {[%clk 0:00:18]} 34... Ba4
{[%clk 0:00:02.8]} 35. Rxd5 {[%clk 0:00:16.7]} 35... Bc6 {[%clk 0:00:03.4]} 36.
Rxd7 {[%clk 0:00:15.8]} 36... Bxf3 {[%clk 0:00:03.3]} 37. Rd8+ {[%clk
0:00:14.9]} 37... Bf8 {[%clk 0:00:03.4]} 38. Rxf8+ {[%clk 0:00:15]} 38... Kg7
{[%clk 0:00:04]} 39. Ne6+ {[%clk 0:00:14.7]} 39... Rxe6 {[%clk 0:00:03]} 40.
Rxf3 {[%clk 0:00:12.6]} 40... Re7 {[%clk 0:00:03.5]} 41. Bg5 {[%clk 0:00:10.4]}
41... Rd7 {[%clk 0:00:03.9]} 42. Bf6+ {[%clk 0:00:09.8]} 42... Kg8 {[%clk
0:00:04.4]} 43. Rdf1 {[%clk 0:00:09.6]} 43... Rf7 {[%clk 0:00:03.8]} 44. Bxe5
{[%clk 0:00:08.8]} 44... Rxf3 {[%clk 0:00:03.3]} 45. Rxf3 {[%clk 0:00:09]} 45...
Qxb2 {[%clk 0:00:03.9]} 46. Bd4 {[%clk 0:00:09.5]} 46... Qc1+ {[%clk 0:00:03.9]}
47. Kh2 {[%clk 0:00:09.6]} 47... Qc2 {[%clk 0:00:03.1]} 48. Bf2 {[%clk
0:00:07.7]} 48... Qe4 {[%clk 0:00:02.9]} 49. Bg3 {[%clk 0:00:07.2]} 49... Qd5
{[%clk 0:00:03.3]} 50. Bf4 {[%clk 0:00:06.9]} 50... Qc4 {[%clk 0:00:03.7]} 51.
Bh6 {[%clk 0:00:06.5]} 51... Qe4 {[%clk 0:00:04]} 52. Rf8# {[%clk 0:00:06]} 1-0

[Event "*** Titled Tuesday Blitz"]
[Site "Chess.com"]
[Date "2021.04.06"]
[Round "2"]
[White "annacramling"]
[Black "mapleaff"]
[Result "1-0"]
[WhiteElo "2076"]
[BlackElo "2373"]
[TimeControl "180+1"]
[EndTime "10:19:22 PDT"]
[Termination "annacramling won by checkmate"]

1. d4 {[%clk 0:03:00.9]} 1... Nf6 {[%clk 0:02:59.4]} 2. c4 {[%clk 0:02:59.5]}
2... g6 {[%clk 0:02:56.3]} 3. Nc3 {[%clk 0:02:58.8]} 3... Bg7 {[%clk 0:02:56.3]}
4. e4 {[%clk 0:02:57.4]} 4... d6 {[%clk 0:02:39.6]} 5. h3 {[%clk 0:02:56.5]}
5... O-O {[%clk 0:02:39.7]} 6. Bg5 {[%clk 0:02:55.1]} 6... c5 {[%clk 0:02:36.2]}
7. d5 {[%clk 0:02:52.9]} 7... e6 {[%clk 0:02:36.1]} 8. Bd3 {[%clk 0:02:48.6]}
8... exd5 {[%clk 0:02:36.1]} 9. exd5 {[%clk 0:02:49.5]} 9... Re8+ {[%clk
0:02:32.8]} 10. Kf1 {[%clk 0:02:36.6]} 10... Nbd7 {[%clk 0:02:28.8]} 11. Nf3
{[%clk 0:02:27]} 11... a6 {[%clk 0:02:21.9]} 12. a4 {[%clk 0:02:26.4]} 12... b6
{[%clk 0:02:20.2]} 13. g4 {[%clk 0:02:22.1]} 13... Ne5 {[%clk 0:02:18.1]} 14.
Nxe5 {[%clk 0:02:21.9]} 14... Rxe5 {[%clk 0:02:19]} 15. Qd2 {[%clk 0:02:00]}
15... h5 {[%clk 0:02:07.6]} 16. f3 {[%clk 0:01:29.3]} 16... Ra7 {[%clk
0:02:06.9]} 17. Kg2 {[%clk 0:01:10.7]} 17... Rae7 {[%clk 0:02:04.3]} 18. Rae1
{[%clk 0:01:08.9]} 18... Qe8 {[%clk 0:01:44.2]} 19. Rxe5 {[%clk 0:01:01.9]}
19... Rxe5 {[%clk 0:01:45]} 20. Bf4 {[%clk 0:00:59.6]} 20... h4 {[%clk
0:00:59.7]} 21. Qf2 {[%clk 0:00:42.2]} 21... Nh7 {[%clk 0:00:32.3]} 22. Bxe5
{[%clk 0:00:37.8]} 22... Bxe5 {[%clk 0:00:30.9]} 23. Qxh4 {[%clk 0:00:35.3]}
23... Bd7 {[%clk 0:00:19]} 24. Re1 {[%clk 0:00:33.3]} 24... Qf8 {[%clk
0:00:14.7]} 25. Ne4 {[%clk 0:00:29.6]} 25... Kg7 {[%clk 0:00:11.3]} 26. Qf2
{[%clk 0:00:20.5]} 26... f5 {[%clk 0:00:10.8]} 27. Ng3 {[%clk 0:00:06.7]} 27...
Bd4 {[%clk 0:00:05.9]} 28. Qd2 {[%clk 0:00:05.8]} 28... Ng5 {[%clk 0:00:03.2]}
29. Qxg5 {[%clk 0:00:05.4]} 29... Bf6 {[%clk 0:00:03.8]} 30. Qd2 {[%clk
0:00:04.8]} 30... Qh8 {[%clk 0:00:02.6]} 31. gxf5 {[%clk 0:00:04.3]} 31... gxf5
{[%clk 0:00:03.5]} 32. Bxf5 {[%clk 0:00:04.4]} 32... Be8 {[%clk 0:00:03.5]} 33.
Be6 {[%clk 0:00:04.4]} 33... Bg6 {[%clk 0:00:03.8]} 34. Nf5+ {[%clk 0:00:04.3]}
34... Bxf5 {[%clk 0:00:04.3]} 35. Bxf5 {[%clk 0:00:05.2]} 35... Qh5 {[%clk
0:00:05]} 36. Bg4 {[%clk 0:00:05.4]} 36... Qh4 {[%clk 0:00:05.1]} 37. Qf2 {[%clk
0:00:05.6]} 37... Qh6 {[%clk 0:00:04.5]} 38. Qe3 {[%clk 0:00:04]} 38... Bg5
{[%clk 0:00:03.2]} 39. Qe6 {[%clk 0:00:04.1]} 39... Qh4 {[%clk 0:00:02.9]} 40.
Qd7+ {[%clk 0:00:03.4]} 40... Kh6 {[%clk 0:00:02.7]} 41. Re6+ {[%clk 0:00:03]}
41... Bf6 {[%clk 0:00:02.7]} 42. Rxf6+ {[%clk 0:00:03]} 42... Qxf6 {[%clk
0:00:03.6]} 43. Qe6 {[%clk 0:00:03.5]} 43... Kg5 {[%clk 0:00:04]} 44. Qxf6+
{[%clk 0:00:03.5]} 44... Kxf6 {[%clk 0:00:04.9]} 45. h4 {[%clk 0:00:03.9]} 45...
Ke5 {[%clk 0:00:05.8]} 46. h5 {[%clk 0:00:04]} 46... Kd4 {[%clk 0:00:06.7]} 47.
h6 {[%clk 0:00:04.4]} 47... Kxc4 {[%clk 0:00:07.6]} 48. h7 {[%clk 0:00:04.8]}
48... Kb3 {[%clk 0:00:08.5]} 49. h8=Q {[%clk 0:00:05.2]} 49... Kxa4 {[%clk
0:00:08.3]} 50. Qc3 {[%clk 0:00:05.4]} 50... Kb5 {[%clk 0:00:07.4]} 51. Bd7#
{[%clk 0:00:04.6]} 1-0

[Event "*** Titled Tuesday Blitz"]
[Site "Chess.com"]
[Date "2021.04.06"]
[Round "2"]
[White "PrinceMurad09"]
[Black "Twitch_ElhamBlitz05"]
[Result "0-1"]
[WhiteElo "2541"]
[BlackElo "2841"]
[TimeControl "180+1"]
[EndTime "10:19:23 PDT"]
[Termination "Twitch_ElhamBlitz05 won by resignation"]

1. e4 {[%clk 0:03:00.9]} 1... c6 {[%clk 0:02:59.6]} 2. Nf3 {[%clk 0:03:00.9]}
2... d5 {[%clk 0:03:00.5]} 3. Nc3 {[%clk 0:03:01.4]} 3... dxe4 {[%clk
0:03:00.4]} 4. Nxe4 {[%clk 0:03:01.8]} 4... Nf6 {[%clk 0:03:01.2]} 5. Qe2 {[%clk
0:03:02.3]} 5... Bf5 {[%clk 0:03:01]} 6. Nxf6+ {[%clk 0:02:51.9]} 6... gxf6
{[%clk 0:03:01.9]} 7. d4 {[%clk 0:02:52.3]} 7... e6 {[%clk 0:02:59.6]} 8. c3
{[%clk 0:02:52.2]} 8... Nd7 {[%clk 0:03:00]} 9. h3 {[%clk 0:02:50.6]} 9... Bd6
{[%clk 0:02:57.4]} 10. a4 {[%clk 0:02:49.2]} 10... Qc7 {[%clk 0:02:57.2]} 11.
Be3 {[%clk 0:02:45.1]} 11... O-O-O {[%clk 0:02:51.8]} 12. g4 {[%clk 0:02:19.4]}
12... Be4 {[%clk 0:02:44]} 13. Bg2 {[%clk 0:02:19.2]} 13... h5 {[%clk
0:02:44.2]} 14. Nh4 {[%clk 0:02:10.1]} 14... Bxg2 {[%clk 0:02:40.7]} 15. Nxg2
{[%clk 0:02:10.3]} 15... hxg4 {[%clk 0:02:41.3]} 16. Qxg4 {[%clk 0:02:10.5]}
16... f5 {[%clk 0:02:34]} 17. Qf3 {[%clk 0:02:08.3]} 17... Nf6 {[%clk
0:02:33.4]} 18. Bf4 {[%clk 0:01:55.8]} 18... Nd5 {[%clk 0:02:25.5]} 19. Bxd6
{[%clk 0:01:44.2]} 19... Qxd6 {[%clk 0:02:25.5]} 20. O-O-O {[%clk 0:01:40.5]}
20... Rdg8 {[%clk 0:02:22]} 21. Ne3 {[%clk 0:01:38.4]} 21... Nf6 {[%clk
0:02:10.9]} 22. Nc4 {[%clk 0:01:37.6]} 22... Qc7 {[%clk 0:01:54.1]} 23. Rhg1
{[%clk 0:01:37.7]} 23... Ne4 {[%clk 0:01:51.7]} 24. Ne5 {[%clk 0:01:36.7]} 24...
Ng5 {[%clk 0:01:34.1]} 25. Qg2 {[%clk 0:01:22]} 25... f6 {[%clk 0:01:30.3]} 26.
f4 {[%clk 0:01:15.7]} 26... fxe5 {[%clk 0:00:57]} 27. dxe5 {[%clk 0:01:13.9]}
27... Rh5 {[%clk 0:00:25.3]} 28. Qe2 {[%clk 0:01:04.1]} 28... Qh7 {[%clk
0:00:24.8]} 29. fxg5 {[%clk 0:01:02.7]} 29... Rhxg5 {[%clk 0:00:25.7]} 30. Rxg5
{[%clk 0:00:59.6]} 30... Rxg5 {[%clk 0:00:26.6]} 31. Qd2 {[%clk 0:00:47.3]}
31... Rg8 {[%clk 0:00:26.2]} 32. Qd6 {[%clk 0:00:46]} 32... Qf7 {[%clk 0:00:26]}
33. Qc5 {[%clk 0:00:43.3]} 33... Kb8 {[%clk 0:00:16.1]} 34. a5 {[%clk
0:00:43.7]} 34... a6 {[%clk 0:00:12.7]} 35. Rd3 {[%clk 0:00:24.6]} 35... f4
{[%clk 0:00:11.3]} 36. Rf3 {[%clk 0:00:20.9]} 36... Qf5 {[%clk 0:00:11.6]} 37.
Qd4 {[%clk 0:00:20]} 37... Rf8 {[%clk 0:00:07.1]} 38. Qd6+ {[%clk 0:00:17.4]}
38... Ka8 {[%clk 0:00:05.8]} 39. Qd3 {[%clk 0:00:16.9]} 39... Qxe5 {[%clk
0:00:04.2]} 40. Kc2 {[%clk 0:00:16.1]} 40... Qxa5 {[%clk 0:00:03.9]} 41. h4
{[%clk 0:00:16.7]} 41... Qh5 {[%clk 0:00:03.9]} 42. Qd6 {[%clk 0:00:15.8]} 42...
Qf5+ {[%clk 0:00:02.7]} 43. Kc1 {[%clk 0:00:14.8]} 43... e5 {[%clk 0:00:03.2]}
44. h5 {[%clk 0:00:13.9]} 44... e4 {[%clk 0:00:03.6]} 45. Rf1 {[%clk 0:00:13.5]}
45... e3 {[%clk 0:00:04.2]} 46. h6 {[%clk 0:00:14]} 46... e2 {[%clk 0:00:04.7]}
47. Re1 {[%clk 0:00:14.6]} 47... f3 {[%clk 0:00:04.8]} 48. h7 {[%clk 0:00:15]}
48... Rh8 {[%clk 0:00:04.3]} 49. Qd4 {[%clk 0:00:14.6]} 49... Qg5+ {[%clk
0:00:03.7]} 50. Kb1 {[%clk 0:00:13.9]} 50... Qg6+ {[%clk 0:00:04.2]} 51. Ka2
{[%clk 0:00:13.7]} 51... Qxh7 {[%clk 0:00:04.7]} 52. Qf2 {[%clk 0:00:13.6]}
52... Qf7+ {[%clk 0:00:04.7]} 53. b3 {[%clk 0:00:14.2]} 53... Re8 {[%clk
0:00:04.8]} 54. Kb2 {[%clk 0:00:13.6]} 54... Qf4 {[%clk 0:00:04.8]} 55. Ra1
{[%clk 0:00:11.9]} 55... Qe3 {[%clk 0:00:04.5]} 56. Qxe3 {[%clk 0:00:11.7]}
56... Rxe3 {[%clk 0:00:05.4]} 57. Kc2 {[%clk 0:00:12.4]} 57... e1=Q {[%clk
0:00:05.6]} 0-1

[Event "*** Titled Tuesday Blitz"]
[Site "Chess.com"]
[Date "2021.04.06"]
[Round "2"]
[White "nrvisakh"]
[Black "Sergey85Rodchenkov"]
[Result "1-0"]
[WhiteElo "2780"]
[BlackElo "2519"]
[TimeControl "180+1"]
[EndTime "10:19:23 PDT"]
[Termination "nrvisakh won by resignation"]

1. e4 {[%clk 0:03:00.9]} 1... c5 {[%clk 0:02:59]} 2. Nc3 {[%clk 0:02:50.8]} 2...
e6 {[%clk 0:02:58.3]} 3. f4 {[%clk 0:02:40.7]} 3... d5 {[%clk 0:02:57.8]} 4. Nf3
{[%clk 0:02:37.6]} 4... Nc6 {[%clk 0:02:56.9]} 5. Bb5 {[%clk 0:02:37.3]} 5...
Ne7 {[%clk 0:02:56.1]} 6. exd5 {[%clk 0:02:31.5]} 6... exd5 {[%clk 0:02:55.6]}
7. Qe2 {[%clk 0:02:29.8]} 7... Be6 {[%clk 0:02:51.1]} 8. Bxc6+ {[%clk
0:02:17.3]} 8... bxc6 {[%clk 0:02:49.5]} 9. O-O {[%clk 0:02:17.3]} 9... Qd6
{[%clk 0:02:42.4]} 10. d4 {[%clk 0:02:11.2]} 10... Nf5 {[%clk 0:02:39.9]} 11.
dxc5 {[%clk 0:02:02]} 11... Qxc5+ {[%clk 0:02:39.5]} 12. Kh1 {[%clk 0:02:02.4]}
12... Be7 {[%clk 0:02:05.6]} 13. g4 {[%clk 0:01:39.3]} 13... Nd4 {[%clk
0:02:04.6]} 14. Nxd4 {[%clk 0:01:38.7]} 14... Qxd4 {[%clk 0:02:04.7]} 15. f5
{[%clk 0:01:38.4]} 15... Bd7 {[%clk 0:02:02.2]} 16. Re1 {[%clk 0:01:37.8]} 16...
O-O {[%clk 0:01:57.9]} 17. Qxe7 {[%clk 0:01:34.4]} 17... Rae8 {[%clk 0:01:56.7]}
18. Qh4 {[%clk 0:01:18.9]} 18... Bxf5 {[%clk 0:01:42.4]} 19. Be3 {[%clk
0:01:00.2]} 19... Rxe3 {[%clk 0:01:13.3]} 20. Rxe3 {[%clk 0:00:59.3]} 20... Be4+
{[%clk 0:01:06.9]} 21. Rxe4 {[%clk 0:00:53.4]} 21... dxe4 {[%clk 0:01:06.5]} 22.
Rd1 {[%clk 0:00:38.8]} 22... Qb4 {[%clk 0:01:02.2]} 23. Rd8 {[%clk 0:00:35.2]}
23... g6 {[%clk 0:00:48]} 24. Rxf8+ {[%clk 0:00:34.4]} 24... Kxf8 {[%clk
0:00:47.7]} 25. Qxh7 {[%clk 0:00:29.7]} 25... e3 {[%clk 0:00:36]} 26. Qh6+
{[%clk 0:00:28.7]} 26... Kg8 {[%clk 0:00:33.2]} 27. Qxe3 {[%clk 0:00:28.1]}
27... Qxg4 {[%clk 0:00:33.1]} 28. Qe2 {[%clk 0:00:19.3]} 28... Qb4 {[%clk
0:00:31.6]} 29. Qe8+ {[%clk 0:00:19.1]} 29... Kg7 {[%clk 0:00:30.8]} 30. Qe5+
{[%clk 0:00:18.8]} 30... Kg8 {[%clk 0:00:31.1]} 31. b3 {[%clk 0:00:18.2]} 31...
Qg4 {[%clk 0:00:25.9]} 32. a4 {[%clk 0:00:16.4]} 32... Qf3+ {[%clk 0:00:25.3]}
33. Kg1 {[%clk 0:00:15.8]} 33... Qg4+ {[%clk 0:00:24.6]} 34. Qg3 {[%clk
0:00:14.4]} 34... Qd4+ {[%clk 0:00:24.5]} 35. Kf1 {[%clk 0:00:13.5]} 35... a5
{[%clk 0:00:24.1]} 36. Qb8+ {[%clk 0:00:12.3]} 36... Kg7 {[%clk 0:00:22.1]} 37.
Qg3 {[%clk 0:00:13.2]} 37... Kg8 {[%clk 0:00:19.7]} 38. h3 {[%clk 0:00:13.2]}
38... c5 {[%clk 0:00:16.4]} 39. Qd3 {[%clk 0:00:12.6]} 39... Qf4+ {[%clk
0:00:15.5]} 40. Kg2 {[%clk 0:00:12]} 40... Qe5 {[%clk 0:00:14.9]} 41. Ne2 {[%clk
0:00:11.2]} 41... Qg5+ {[%clk 0:00:13]} 42. Ng3 {[%clk 0:00:09.9]} 42... Qf4
{[%clk 0:00:12.5]} 43. Qd8+ {[%clk 0:00:09.4]} 43... Kg7 {[%clk 0:00:11.6]} 44.
Qd3 {[%clk 0:00:10.1]} 44... Kg8 {[%clk 0:00:11]} 45. Qc3 {[%clk 0:00:09.2]}
45... Qg5 {[%clk 0:00:08.4]} 46. Qxa5 {[%clk 0:00:08.2]} 46... Qd5+ {[%clk
0:00:06]} 47. Kf2 {[%clk 0:00:07.1]} 47... Qd4+ {[%clk 0:00:06.3]} 48. Kg2
{[%clk 0:00:07.2]} 48... c4 {[%clk 0:00:06.5]} 49. Qa8+ {[%clk 0:00:06.6]} 49...
Kg7 {[%clk 0:00:06.1]} 50. Qf3 {[%clk 0:00:07.5]} 50... cxb3 {[%clk 0:00:05.6]}
51. cxb3 {[%clk 0:00:07.2]} 51... Qb2+ {[%clk 0:00:05.8]} 52. Ne2 {[%clk
0:00:07.6]} 52... Qc2 {[%clk 0:00:05.4]} 53. Qc3+ {[%clk 0:00:07.3]} 53... Qxc3
{[%clk 0:00:05]} 54. Nxc3 {[%clk 0:00:08.2]} 1-0